Cogmind - Beta 10.2 --- EXPLORER MODE // 2021.02.18 @ 14:01:49 // Winter2019/RPGLIKE Player: TeaParrot Result: Self-destructed Performance ------------- Evolutions (1) 500 Regions Visited (5) 1000 Robots Destroyed (18) 90 Value Destroyed (290) 290 Prototype IDs (23) 460 Alien Tech Used (0) 0 Bonus (360) 360 TOTAL SCORE: 2700 Bonus ------- Follower Combat Kills 60 Aligned with FarCom 300 Cogmind --------- Core Integrity 446/600 Matter 300/300 Energy 160/160 System Corruption 1% Temperature Cool (0) Movement Walking (120) Location -9/Exiles Parts ------- > --- POWER (1) -------- Light Nuclear Core > --- PROPULSION (1) --- Aluminum Leg > --- UTILITY (1) ------ Structural Scanner > --- WEAPON (1) ------- Heavy Assault Rifle > --- INVENTORY (2) ---- EM Pulse Gun Mining Laser Peak State ------------ > --- POWER ------------ Light Nuclear Core > --- PROPULSION ------- Aluminum Leg > --- UTILITY ---------- Structural Scanner > --- WEAPON ----------- Heavy Assault Rifle > --- INVENTORY -------- EM Pulse Gun Mining Laser [Rating: 7] Favorites ----------- Power Light Nuclear Core Engine Ion Engine Power Core Light Nuclear Core Propulsion Aluminum Leg Leg Aluminum Leg Utility Structural Scanner Device Structural Scanner Weapon EM Pulse Gun Energy Gun EM Pulse Gun Ballistic Gun Heavy Assault Rifle Build | -11 -10 -10 -9 -9 -9 ------- Run | Scr Mat Min Mat Min Exi Slots Evolved . | . . . . . . Power . | . . . . . . Propulsion . | . . . . . . Utility . | . . . . . . Weapon . | . . . . . . Parts Attached 7 | 3 2 1 1 . . Power 2 | 1 . 1 . . . Engine 1 | 1 . . . . . Core 1 | . . 1 . . . Reactor . | . . . . . . Propulsion 1 | 1 . . . . . Treads . | . . . . . . Leg 1 | 1 . . . . . Wheel . | . . . . . . Hover . | . . . . . . Flight . | . . . . . . Utility 1 | . 1 . . . . Device 1 | . 1 . . . . Storage . | . . . . . . Processor . | . . . . . . Hackware . | . . . . . . Protection . | . . . . . . Artifact . | . . . . . . Weapon 3 | 1 1 . 1 . . Energy Gun 2 | 1 1 . . . . Energy Cannon . | . . . . . . Ballistic Gun 1 | . . . 1 . . Ballistic Cannon . | . . . . . . Launcher . | . . . . . . Special Weapon . | . . . . . . Impact Weapon . | . . . . . . Slashing Weapon . | . . . . . . Piercing Weapon . | . . . . . . Special Melee Weapon . | . . . . . . Unidentified Prototypes . | . . . . . . Parts Lost . | . . . . . . Power . | . . . . . . Propulsion . | . . . . . . Utility . | . . . . . . Weapon . | . . . . . . Highest Loss Streak . | . . . . . . Average Slot Usage (%) 99 | . 99 100 100 100 100 Engine 7 | . 25 7 . . . Core 17 | . . 17 25 25 25 Leg 25 | . 25 25 25 25 25 Device 24 | . 24 25 25 25 25 Energy Gun 18 | . 25 25 18 . . Ballistic Gun 6 | . . . 6 25 25 Naked Turns . | . . . . . . Heaviest Build 9 | 7 8 8 9 9 9 Greatest Support 10 | 10 10 10 10 10 10 Greatest Overweight (x) . | . . . . . . Average Overweight (x) . | . . . . . . Largest Inventory Capacity 2 | . . 2 2 2 2 Average Capacity 1 | . . 2 2 2 2 Most Carried 2 | . . 1 2 2 2 Average Carried . | . . . 1 2 2 Final Capacity 2 | . . 2 2 2 2 Final Carried 2 | . . 1 2 2 2 Class Distribution -------------------- 100% | Hacker-Mutant Dominant Class ---------------- Hacker-Mutant | -10/Materials Hacker-Mutant | -10/Mines Hacker-Mutant | -9/Materials Hacker-Mutant | -9/Mines Hacker-Mutant | -9/Exiles Resources | -11 -10 -10 -9 -9 -9 ----------- Run | Scr Mat Min Mat Min Exi Matter Collected 327 | 109 141 10 22 45 . Remotely . | . . . . . . Salvage Created 515 | . 126 92 191 106 . Parts 38 | . 6 10 16 6 . Haulers Intercepted 1 | . 1 . . . . Recyclers Shooed . | . . . . . . Parts Field Recycled . | . . . . . . Retrieved Matter . | . . . . . . Parts Self-Destructed . | . . . . . . Prevented . | . . . . . . Kills | -11 -10 -10 -9 -9 -9 ------- Run | Scr Mat Min Mat Min Exi Combat Hostiles Destroyed 13 | . 2 4 4 3 . Guns 13 | . 2 4 4 3 . Classes Destroyed 8 | . 3 1 3 1 . Worker 1 | . 1 . . . . Builder 1 | . . . 1 . . Hauler 1 | . 1 . . . . Recycler 1 | . . . . 1 . Watcher 1 | . . . 1 . . Swarmer 9 | . 2 2 2 3 . Grunt 3 | . . 2 1 . . Sentry 1 | . . . 1 . . Best Kill Streak 4 | . 4 2 2 3 . Combat Bots Only 3 | . 2 2 2 3 . Max Kills in Single Turn 1 | . 1 1 1 1 . Gunslinging . | . . . . . . Exploded . | . . . . . . Melee . | . . . . . . Uniques/NPCs Destroyed . | . . . . . . Combat | -11 -10 -10 -9 -9 -9 -------- Run | Scr Mat Min Mat Min Exi Damage Taken 417 | . 32 98 217 70 . Core 345 | . 29 75 182 59 . Absorbed by Shields . | . . . . . . Redirected to Core 214 | . 9 61 113 31 . Core Remaining (%) 100 | 100 . 100 . . . Volleys Fired 71 | . 15 17 27 12 . Largest 1 | . 1 1 1 1 . Hottest 40 | . 40 40 40 23 . Shots Fired 71 | . 15 17 27 12 . Gun 71 | . 15 17 27 12 . Cannon . | . . . . . . Launcher . | . . . . . . Special . | . . . . . . Kinetic 19 | . . . 7 12 . Thermal . | . . . . . . Explosive . | . . . . . . Electromagnetic 52 | . 15 17 20 . . Robot Hit Streak 19 | . 6 9 17 19 . Robot Miss Streak 3 | . 3 1 1 1 . Penetration Max . | . . . . . . Secondary Targets . | . . . . . . Shots Hit Robots 60 | . 8 15 26 11 . Core Hits 26 | . 5 8 9 4 . Critical Hits . | . . . . . . Critical Kills . | . . . . . . Critical Parts Destroyed . | . . . . . . Melee Attacks . | . . . . . . Impact . | . . . . . . Slashing . | . . . . . . Piercing . | . . . . . . Sneak Attacks . | . . . . . . Combat Hostiles . | . . . . . . Follow-up Attacks . | . . . . . . Damage Inflicted 893 | . 111 213 370 199 . Guns 860 | . 111 205 345 199 . Cannons . | . . . . . . Explosions 25 | . . . 25 . . Melee . | . . . . . . Ramming 8 | . . 8 . . . Kinetic 303 | . . . 104 199 . Thermal 25 | . . . 25 . . Explosive . | . . . . . . Electromagnetic 557 | . 111 205 241 . . Impact . | . . . . . . Slashing . | . . . . . . Piercing . | . . . . . . Highest Corruption 1 | . 1 1 1 1 1 Average Corruption 1 | . 1 1 1 1 1 Corruption Purged . | . . . . . . Effects 3 | . . . 2 1 . Message Errors 3 | . . . 2 1 . Overload Shots . | . . . . . . Overflow Damage . | . . . . . . Projectiles . | . . . . . . Explosions . | . . . . . . Melee . | . . . . . . Knockbacks . | . . . . . . Impact . | . . . . . . Kinetic . | . . . . . . Secondary . | . . . . . . Self-Inflicted Damage 4 | . . 4 . . . Shots . | . . . . . . Rammed 1 | . . 1 . . . Targets Rammed 1 | . . 1 . . . Kicked . | . . . . . . Crushed . | . . . . . . Highest Temperature 124 | . . 39 124 . . Average Temperature 33 | . . 14 46 . . Received Heat Transfer 165 | . . 69 96 . . Siege Activations . | . . . . . . Robots Corrupted . | . . . . . . Combat Hostiles . | . . . . . . Parts Fried . | . . . . . . Impact Corruptions . | . . . . . . Robots Melted . | . . . . . . Combat Hostiles . | . . . . . . Parts Melted . | . . . . . . Heat Transferred 50 | . . . 50 . . Parts Sabotaged . | . . . . . . Parts Stolen . | . . . . . . Parts Stripped . | . . . . . . Power Chain Reactions 1 | . . . 1 . . Missiles Intercepted . | . . . . . . Alert | -11 -10 -10 -9 -9 -9 ------- Run | Scr Mat Min Mat Min Exi Peak Influence 183 | . 66 133 183 125 . Initial 50 | . . 18 13 50 . Average 48 | . 20 43 80 72 . Maximum Alert Level . | . . . . . . Low Security (%) 100 | 100 100 100 100 100 . Level 1 . | . . . . . . Level 2 . | . . . . . . Level 3 . | . . . . . . Level 4 . | . . . . . . Level 5 . | . . . . . . High Security . | . . . . . . Max Security . | . . . . . . Squads Dispatched 1 | . . . 1 . . Investigation 1 | . . . 1 . . Extermination . | . . . . . . Reinforcement . | . . . . . . Assault . | . . . . . . Garrison . | . . . . . . Intercept . | . . . . . . Construction Impeded . | . . . . . . Haulers Reinforced . | . . . . . . Stealth | -11 -10 -10 -9 -9 -9 --------- Run | Scr Mat Min Mat Min Exi Distress Signals 1 | . . . 1 . . Communications Jammed . | . . . . . . Distress Signals . | . . . . . . Times Spotted 24 | . 3 6 12 3 . Peak Tracking Total 6 | . 2 2 6 3 . Tactical Retreats 1 | . . . 1 . . Traps | -11 -10 -10 -9 -9 -9 ------- Run | Scr Mat Min Mat Min Exi Traps Triggered 2 | . 1 . 1 . . Indirectly . | . . . . . . Trap Hack Attempts . | . . . . . . Triggered . | . . . . . . Disarmed . | . . . . . . Reprogrammed . | . . . . . . Reused . | . . . . . . Traps Extracted . | . . . . . . Installed . | . . . . . . Triggered . | . . . . . . Machines | -11 -10 -10 -9 -9 -9 ---------- Run | Scr Mat Min Mat Min Exi Machines Disabled 1 | . 1 . . . . Max in Single Turn 1 | . 1 . . . . Machines Sabotaged . | . . . . . . Garrisons Compromised . | . . . . . . Overloaded Fab Kills . | . . . . . . Fab Network Shutdowns . | . . . . . . Hacking | -11 -10 -10 -9 -9 -9 --------- Run | Scr Mat Min Mat Min Exi Machines Accessed 6 | . 2 . 3 . 1 Terminals 5 | . 2 . 3 . . Fabricators . | . . . . . . Repair Stations . | . . . . . . Recycling Units . | . . . . . . Scanalyzers . | . . . . . . Garrison Access . | . . . . . . Total Hacks 19 | . 6 . 12 . 1 Successful 14 | . 6 . 7 . 1 Failed 5 | . . . 5 . . Catastrophic . | . . . . . . Database Lockouts . | . . . . . . Manual 7 | . 2 . 4 . 1 Terminals 18 | . 6 . 12 . . Fabricators . | . . . . . . Repair Stations . | . . . . . . Recycling Units . | . . . . . . Scanalyzers . | . . . . . . Garrison Access . | . . . . . . Terminal Hacks 11 | . 5 . 5 . 1 Record 3 | . 3 . . . . Part Schematic 1 | . 1 . . . . Robot Analysis 3 | . . . 3 . . Branch Access Points 2 | . 1 . 1 . . Recall Reinforcements 1 | . . . 1 . . EX-Prototype ID Bank 1 | . . . . . 1 Fabricator Hacks . | . . . . . . Repair Station Hacks . | . . . . . . Recycling Unit Hacks . | . . . . . . Scanalyzer . | . . . . . . Garrison Access Hacks . | . . . . . . Unauthorized Hacks 3 | . 1 . 2 . . Terminals 3 | . 1 . 2 . . Botnet 3 | . 1 . 2 . . Fabricators . | . . . . . . Repair Stations . | . . . . . . Recycling Units . | . . . . . . Scanalyzers . | . . . . . . Garrison Access . | . . . . . . Data Cores Recovered . | . . . . . . Used . | . . . . . . Hacking Detections 4 | . 2 . 2 . . Full Trace Events 1 | . . . 1 . . Feedback Events . | . . . . . . Feedback Blocked . | . . . . . . Robot Schematics Acquired . | . . . . . . Robots Built . | . . . . . . Matter . | . . . . . . Time . | . . . . . . Total Robot Build Rating . | . . . . . . Part Schematics Acquired 1 | . 1 . . . . Parts Built . | . . . . . . Matter . | . . . . . . Time . | . . . . . . Total Part Build Rating . | . . . . . . Parts Repaired . | . . . . . . Time . | . . . . . . Parts Recycled . | . . . . . . Recycled Matter . | . . . . . . Retrieved Matter . | . . . . . . Retrieved Components . | . . . . . . Parts Scanalyzed . | . . . . . . Part Schematics Acquired . | . . . . . . Parts Damaged . | . . . . . . Bothacking | -11 -10 -10 -9 -9 -9 ------------ Run | Scr Mat Min Mat Min Exi Used RIF Installer . | . . . . . . Robots Hacked . | . . . . . . Non-combat . | . . . . . . Combat . | . . . . . . Robot Hacks Applied . | . . . . . . Relay Couplers Released . | . . . . . . Robots Rewired . | . . . . . . Allies Hacked . | . . . . . . Hacks Repelled . | . . . . . . Allies | -11 -10 -10 -9 -9 -9 -------- Run | Scr Mat Min Mat Min Exi Total Allies 1 | . . 1 . . . Largest Group 1 | . . 1 . . . Highest-Rated Group 31 | . . 31 . . . Highest-Rated Ally 31 | . . 31 . . . Total Orders . | . . . . . . Ally Attacks 2 | . . 2 . . . Total Damage 42 | . . 42 . . . Kills 2 | . . 2 . . . Allies Corrupted . | . . . . . . Allies Melted . | . . . . . . Intel | -11 -10 -10 -9 -9 -9 ------- Run | Scr Mat Min Mat Min Exi Robot Analysis Total 3 | . . . 3 . . Derelict Logs Recovered 1 | . . . . 1 . Drone Launches . | . . . . . . Drone Recoveries . | . . . . . . Exploration | -11 -10 -10 -9 -9 -9 ------------- Run | Scr Mat Min Mat Min Exi Turns Passed 1631 | 43 289 701 275 180 143 Spaces Moved 1166 | 35 214 497 170 131 119 Core 4 | 4 . . . . . Treads . | . . . . . . Legs 1162 | 31 214 497 170 131 119 Wheels . | . . . . . . Hover . | . . . . . . Flight . | . . . . . . Fastest Speed 50 | 50 120 120 120 120 120 Average Speed 119 | 112 120 120 120 120 120 Slowest Speed 120 | 120 120 120 120 120 120 Overloaded Moves . | . . . . . . Propulsion Burnouts . | . . . . . . Robots Hopped . | . . . . . . Cave-ins Triggered . | . . . . . . Exploration Rate (%) 40 | 3 46 87 18 47 40 Regions Visited 5 Branch Regions 3 Pre-discovered Areas . | . . . . . . Known Exits Taken 5 | 1 1 1 1 1 . Unknown Exits Taken . | . . . . . . Scrap Searched 1 | . . 1 . . . Spaces Dug . | . . . . . . Terrain Destroyed 6 | . . . 6 . . Melee . | . . . . . . Projectile . | . . . . . . AOE 6 | . . . 6 . . Terrain Rammed . | . . . . . . Walls Destroyed . | . . . . . . Machines Disabled . | . . . . . . Actions | -11 -10 -10 -9 -9 -9 --------- Run | Scr Mat Min Mat Min Exi Total 1326 | 37 231 584 213 142 119 Wait 67 | . . 57 10 . . Move 1161 | 34 213 496 169 130 119 Hop . | . . . . . . Pick Up 3 | . . 2 1 . . Fast Attach 4 | 3 1 . . . . Attach . | . . . . . . Detach . | . . . . . . Swap 3 | . 1 1 1 . . Drop 2 | . 1 1 . . . Fire 71 | . 15 17 27 12 . Melee . | . . . . . . Ram . | . . . . . . Kick 1 | . . 1 . . . Crush . | . . . . . . Escape Stasis . | . . . . . . Rewire . | . . . . . . Trap . | . . . . . . Miscellaneous 14 | . . 9 5 . . Route ------- -11/Scrapyard -10/Materials (discovered 3 exits: *Mat x2 / *Min) -10/Mines (discovered 2 exits: *Mat x2) -9/Materials (discovered 3 exits: *Mat / *Min x2) -9/Mines (discovered 2 exits: *Mat / *Exi) -9/Exiles History --------- Turn | Location | Event 6 | -11/Scrapyard | Identified exit to Materials 6 | -11/Scrapyard | Discovered exit to Materials (range 16) 44 | -11/Scrapyard | Entered Materials 78 | -10/Materials | Identified exit to Mines 191 | -10/Materials | Identified exit to Materials 191 | -10/Materials | Discovered exit to Materials (range 8) 263 | -10/Materials | Discovered exit to Materials (range 15) 310 | -10/Materials | Build established: Hacker-Mutant 333 | -10/Materials | Entered Mines 659 | -10/Mines | Discovered exit to Materials (range 5) 697 | -10/Mines | Discovered exit to Materials (range 9) 752 | -10/Mines | Received a Mining Laser from a helpful Derelict 925 | -10/Mines | Reached level 2 1034 | -10/Mines | Entered Materials 1036 | -9/Materials | Reached level 3 1049 | -9/Materials | Identified exit to Mines 1223 | -9/Materials | Reached level 4 1280 | -9/Materials | Identified exit to Materials 1280 | -9/Materials | Discovered exit to Materials (range 13) 1309 | -9/Materials | Entered Mines 1375 | -9/Mines | Discovered exit to Materials (range 8) 1452 | -9/Mines | Learned Materials terminal intel 1485 | -9/Mines | Deemed a non-threat by the Exiles lab entrance 1485 | -9/Mines | Identified exit to Exiles 1485 | -9/Mines | Discovered exit to Exiles (range 5) 1489 | -9/Mines | Entered Exiles 1491 | -9/Exiles | Reached level 5 1519 | -9/Exiles | Met 8R-AWN 1537 | -9/Exiles | Met EX-HEX 1578 | -9/Exiles | Met EX-BIN 1593 | -9/Exiles | Aligned with FarCom system 1594 | -9/Exiles | Given EX-Vault access code 1626 | -9/Exiles | Opened EX-Vault 1632 | -9/Exiles | Self-destructed Last Messages --------------- Modified TNC 0b10 Alert Chip Cloak of Protection Skeleton Box Trap Reconfigurator Supersonic Drone Bay Army-in-a-Box PSU Rigger Chronowheel AWS/Thermal Latent Energy Streamer Gui. Plasma Cannon Firepult YOLO Cannon AWS/Gauss XL Autogun Array AWS/Autocannon Field Lobotomy Kit Longsword +1 Deploy-a-Sentry Map ----- +----------------------------------------------------+ | | | | | | | | | | | | | | | | | | | | | | | | | | | | | | | | | | | | | | | | | | | ???????????????????#########?????????????????????? | | ???????????????????# ! !#?????????????????????? | | ???????????????????#== #?????????????????????? | | ???????????????????# #?????????????????????? | | ???????????????????# @X#?????????????????????? | | ???????????????????## ##?????????????????????? | | ???????????????????#X #??????????????????????? | | ???????????????????## #??????????????????????? | | ????????????????????# #??????????????????????? | | ????????????????????# #???###????????????????? | | ????????????????????# #??"""""???????????????? | | ????????????????????# ## """???????????????? | | ????????????????????# X""???????????????? | | ????????????????????# ## """???????????????? | | ??????????????####??# #??"""""???????????????? | | ?????????????""""""?# #???###????????????????? | | ?????????????"""" ## #??????????????????????? | | ????????????#""X" #??????????????????????? | | ????????????#" #??????????????????????? | | ????????????#" ## #??????????????????????? | | ????????????#""""""?# #?#########????????????? | | ????????????##"###??# #?#"""""""#????????????? | | ????????????????????# #?#"""""""#????????????? | | ????????????????????# #?#"""""""#????????????? | | ???????????????????## ###"" """"#????????????? | | ???????????????????#" """"#????????????? | | ???????????????????#" """#????????????? | | ???????????????????#" """#????????????? | | ???????????????????#" """#????????????? | +----------------------------------------------------+ Best States ------------- Heat Dissipation 25 Energy Generation 14 Energy Capacity 250 Matter Stores 300 Matter Capacity 300 Sight Range 16 Terrain Scan Density 10 Resistance: KI 35 Resistance: TH 35 Resistance: EX 35 Resistance: EM 35 Resistance: I 35 Resistance: S 35 Resistance: P 35 Evasion (%) 40 Offensive Hacking 20 Item Schematics ----------------- Aluminum Leg | -10/Materials | Hacked Robot Schematics ------------------ None Fabricated ------------ Nothing Alien Tech Used ----------------- None Achievements -------------- None Challenges ------------ None RPGLIKE | -11 -10 -10 -9 -9 -9 --------- Run | Scr Mat Min Mat Min Exi Levels Raised 4 | . . 1 2 . 1 XP Earned 12159 | 6000 285 1279 3395 850 350 XP Spent 750 | . . 750 . . . Upgrades 2 | . . 2 . . . Inventory Capacity 2 | . . 2 . . . Protomatter Created 116 | . . 74 29 13 . Integrity Restored 225 | . . 138 87 . . Core 191 | . . 104 87 . . Parts 34 | . . 34 . . . Protomatter Decayed 84 | . . 71 . 13 . Game ------ Seed AdvancedSigixCutter Manual? 0 Play Time 00:14:52 Cumulative 58.4 hours Start 2021.02.18 @ 13:46:49 End 2021.02.18 @ 14:01:49 Sessions 1 Manual Loads 0 Difficulty Explorer Special Mode Winter2019/RPGLIKE Game No. 23 Rogue 0 Adventurer 5 Explorer 18 Win Type - Total 8 Types 4/1/0/1/1/0/0/1/0 Lore% 66 Gallery% 63 Achievement% 65 Wizard Run 0 Options --------- ASCII 0 Keyboard 0 Movement Mouse Keybinds 0 Fullscreen 0 Font 14/Terminus Map View 76x50 Tactical HUD 1 Map Filters NONE Filters NONE Steam 1 RUN: ddaeeeb2-6780-4b79-a880-0f811b61d3e8